[Event "Titled Tuesday Blitz April 05 Late 2022"]
[White "Kosakowski, Jakub"]
[Black "Demchenko, Anton"]
[WhiteFideId "1185080"]
[BlackFideId "4160258"]
[WhiteElo "2454"]
[BlackElo "2539"]
[Result "0-1"]
[Round "05"]
[TimeControl "180+1"]
[Date "2022.04.05"]
[WhiteClock "0:00:52"]
[BlackClock "0:00:42"]

1. d4 {[%clk 0:03:00]}  Nf6 {[%clk 0:02:59]} 2. c4 {[%clk 0:02:56]}  d6 {[%clk 0:02:59]} 3. g3 {[%clk 0:02:56]}  e5 {[%clk 0:02:57]} 4. Nc3 {[%clk 0:02:54]}  Nbd7 {[%clk 0:02:55]} 5. Bg2 {[%clk 0:02:54]}  g6 {[%clk 0:02:56]} 6. Nf3 {[%clk 0:02:53]}  Bg7 {[%clk 0:02:56]} 7. O-O {[%clk 0:02:54]}  O-O {[%clk 0:02:57]} 8. e4 {[%clk 0:02:54]}  exd4 {[%clk 0:02:57]} 9. Nxd4 {[%clk 0:02:54]}  Nc5 {[%clk 0:02:58]} 10. Re1 {[%clk 0:02:54]}  Re8 {[%clk 0:02:56]} 11. h3 {[%clk 0:02:53]}  a5 {[%clk 0:02:56]} 12. Qc2 {[%clk 0:02:43]}  a4 {[%clk 0:02:53]} 13. Bg5 {[%clk 0:02:39]}  h6 {[%clk 0:02:52]} 14. Be3 {[%clk 0:02:37]}  c6 {[%clk 0:02:51]} 15. Rad1 {[%clk 0:02:37]}  Nfd7 {[%clk 0:02:50]} 16. Nde2 {[%clk 0:02:32]}  Qa5 {[%clk 0:02:51]} 17. Rxd6 {[%clk 0:02:27]}  Ne5 {[%clk 0:02:51]} 18. b3 {[%clk 0:02:18]}  axb3 {[%clk 0:02:50]} 19. axb3 {[%clk 0:02:19]}  Bxh3 {[%clk 0:02:48]} 20. Rd2 {[%clk 0:01:49]}  Bg4 {[%clk 0:02:04]} 21. Nd4 {[%clk 0:01:45]}  Ne6 {[%clk 0:02:04]} 22. f4 {[%clk 0:01:33]}  Nxd4 {[%clk 0:01:59]} 23. Bxd4 {[%clk 0:01:34]}  Nf3+ {[%clk 0:01:59]} 24. Bxf3 {[%clk 0:01:35]}  Bxd4+ {[%clk 0:01:58]} 25. Rxd4 {[%clk 0:01:34]}  Bxf3 {[%clk 0:01:59]} 26. Qd3 {[%clk 0:01:32]}  Qh5 {[%clk 0:01:52]} 27. Kf2 {[%clk 0:01:29]}  Bg4 {[%clk 0:01:46]} 28. Rg1 {[%clk 0:01:27]}  Qc5 {[%clk 0:01:24]} 29. e5 {[%clk 0:01:12]}  Rad8 {[%clk 0:01:19]} 30. Ke3 {[%clk 0:01:11]}  Bf5 {[%clk 0:01:16]} 31. Ne4 {[%clk 0:01:10]}  Bxe4 {[%clk 0:01:15]} 32. Kxe4 {[%clk 0:01:10]}  Rxd4+ {[%clk 0:01:09]} 33. Qxd4 {[%clk 0:01:10]}  Qa3 {[%clk 0:01:10]} 34. Qd3 {[%clk 0:00:59]}  Qa7 {[%clk 0:00:47]} 35. Qd4 {[%clk 0:00:56]}  Qa2 {[%clk 0:00:47]} 36. Qd3 {[%clk 0:00:52]}  Qf2 {[%clk 0:00:45]} 37. Rd1 {[%clk 0:00:52]}  f5# {[%clk 0:00:42]} 0-1


[Site "https://www.chess.com"]

[Event "Titled Tuesday Blitz April 05 Late 2022"]
[White "Kosteniuk, Alexandra"]
[Black "Rottenwohrer Suarez, Juan"]
[WhiteFideId "4128125"]
[BlackFideId "32068182"]
[WhiteElo "2469"]
[BlackElo "2158"]
[Result "1-0"]
[Round "05"]
[TimeControl "180+1"]
[Date "2022.04.06"]
[WhiteClock "0:01:48"]
[BlackClock "0:00:07"]

1. Nf3 {[%clk 0:02:55]}  Nf6 {[%clk 0:02:59]} 2. d4 {[%clk 0:02:55]}  g6 {[%clk 0:03:00]} 3. c4 {[%clk 0:02:53]}  Bg7 {[%clk 0:03:00]} 4. Nc3 {[%clk 0:02:51]}  O-O {[%clk 0:03:01]} 5. e4 {[%clk 0:02:51]}  d6 {[%clk 0:03:01]} 6. Be2 {[%clk 0:02:52]}  e5 {[%clk 0:03:02]} 7. O-O {[%clk 0:02:52]}  Nc6 {[%clk 0:03:02]} 8. d5 {[%clk 0:02:52]}  Ne7 {[%clk 0:03:03]} 9. Qc2 {[%clk 0:02:51]}  Ne8 {[%clk 0:02:35]} 10. Rd1 {[%clk 0:02:45]}  a5 {[%clk 0:02:25]} 11. Nb5 {[%clk 0:02:34]}  h6 {[%clk 0:02:08]} 12. c5 {[%clk 0:02:32]}  f5 {[%clk 0:02:06]} 13. cxd6 {[%clk 0:02:20]}  cxd6 {[%clk 0:02:06]} 14. Nd2 {[%clk 0:02:16]}  g5 {[%clk 0:01:53]} 15. exf5 {[%clk 0:02:12]}  Bxf5 {[%clk 0:01:46]} 16. Qb3 {[%clk 0:02:05]}  a4 {[%clk 0:01:41]} 17. Qa3 {[%clk 0:02:05]}  Nxd5 {[%clk 0:01:20]} 18. Bc4 {[%clk 0:02:04]}  Be6 {[%clk 0:01:20]} 19. Ne4 {[%clk 0:02:03]}  Nf4 {[%clk 0:01:14]} 20. Bxe6+ {[%clk 0:02:01]}  Nxe6 {[%clk 0:01:13]} 21. Nexd6 {[%clk 0:01:59]}  Nxd6 {[%clk 0:01:08]} 22. Rxd6 {[%clk 0:01:55]}  Qe7 {[%clk 0:01:03]} 23. Be3 {[%clk 0:01:53]}  e4 {[%clk 0:00:17]} 24. Rad1 {[%clk 0:01:52]}  Rad8 {[%clk 0:00:11]} 25. Qxa4 {[%clk 0:01:48]}  Rxd6 {[%clk 0:00:10]} 26. Rxd6 {[%clk 0:01:48]}  Bxb2 {[%clk 0:00:07]} 27. Qb3 {[%clk 0:01:48]} 1-0


[Site "https://www.chess.com"]

[Event "Titled Tuesday Blitz April 05 Late 2022"]
[White "Koziorowicz, Michal"]
[Black "Rytenko, Vsevolod"]
[WhiteFideId "21809194"]
[BlackFideId "14133040"]
[WhiteElo "2679"]
[BlackElo "2358"]
[Result "0-1"]
[Round "05"]
[TimeControl "180+1"]
[Date "2022.04.06"]
[WhiteClock "0:00:49"]
[BlackClock "0:00:20"]

1. e4 {[%clk 0:03:00]}  c5 {[%clk 0:02:57]} 2. Nf3 {[%clk 0:03:00]}  d6 {[%clk 0:02:57]} 3. Bb5+ {[%clk 0:03:00]}  Nc6 {[%clk 0:02:57]} 4. O-O {[%clk 0:02:59]}  Nf6 {[%clk 0:02:57]} 5. Re1 {[%clk 0:03:00]}  g6 {[%clk 0:02:57]} 6. c3 {[%clk 0:03:00]}  Bg7 {[%clk 0:02:57]} 7. d4 {[%clk 0:03:01]}  O-O {[%clk 0:02:53]} 8. Bg5 {[%clk 0:03:00]}  cxd4 {[%clk 0:02:53]} 9. cxd4 {[%clk 0:03:00]}  Qb6 {[%clk 0:02:53]} 10. Nc3 {[%clk 0:02:59]}  Bg4 {[%clk 0:02:52]} 11. Bxc6 {[%clk 0:02:56]}  bxc6 {[%clk 0:02:51]} 12. e5 {[%clk 0:02:55]}  dxe5 {[%clk 0:02:39]} 13. dxe5 {[%clk 0:02:56]}  Rfd8 {[%clk 0:02:34]} 14. Qe2 {[%clk 0:02:54]}  Nd5 {[%clk 0:02:32]} 15. Nxd5 {[%clk 0:02:51]}  Rxd5 {[%clk 0:02:33]} 16. Be3 {[%clk 0:02:07]}  Qb5 {[%clk 0:02:25]} 17. Qxb5 {[%clk 0:02:06]}  cxb5 {[%clk 0:02:23]} 18. Nd4 {[%clk 0:01:58]}  Bxe5 {[%clk 0:02:20]} 19. Nc6 {[%clk 0:01:57]}  Bf6 {[%clk 0:02:18]} 20. Nxa7 {[%clk 0:01:44]}  Bxb2 {[%clk 0:02:10]} 21. Rab1 {[%clk 0:01:43]}  Bc3 {[%clk 0:02:08]} 22. Rec1 {[%clk 0:01:42]}  b4 {[%clk 0:02:05]} 23. a3 {[%clk 0:01:37]}  Bf5 {[%clk 0:01:58]} 24. Nc6 {[%clk 0:01:23]}  Rd7 {[%clk 0:01:23]} 25. Rxb4 {[%clk 0:01:22]}  Bxb4 {[%clk 0:01:22]} 26. axb4 {[%clk 0:01:23]}  Rc8 {[%clk 0:01:12]} 27. b5 {[%clk 0:01:22]}  Kg7 {[%clk 0:01:00]} 28. Ra1 {[%clk 0:01:17]}  Rb7 {[%clk 0:00:51]} 29. h3 {[%clk 0:01:17]}  Rxb5 {[%clk 0:00:45]} 30. Na7 {[%clk 0:01:17]}  Rbb8 {[%clk 0:00:24]} 31. Nxc8 {[%clk 0:01:17]}  Rxc8 {[%clk 0:00:25]} 32. Ra7 {[%clk 0:01:17]}  Re8 {[%clk 0:00:24]} 33. Bc5 {[%clk 0:01:16]}  Kf6 {[%clk 0:00:21]} 34. g4 {[%clk 0:01:16]}  Be4 {[%clk 0:00:20]} 35. Kh2 {[%clk 0:01:16]}  Bd5 {[%clk 0:00:19]} 36. Kg3 {[%clk 0:01:17]}  e6 {[%clk 0:00:19]} 37. f4 {[%clk 0:01:14]}  h6 {[%clk 0:00:17]} 38. Bd4+ {[%clk 0:01:14]}  e5 {[%clk 0:00:17]} 39. Bxe5+ {[%clk 0:01:13]}  Rxe5 {[%clk 0:00:17]} 40. fxe5+ {[%clk 0:01:12]}  Kxe5 {[%clk 0:00:18]} 41. h4 {[%clk 0:01:08]}  Be6 {[%clk 0:00:18]} 42. Ra8 {[%clk 0:01:08]}  Kf6 {[%clk 0:00:18]} 43. Ra5 {[%clk 0:01:06]}  Kg7 {[%clk 0:00:18]} 44. Kf4 {[%clk 0:01:06]}  Kf6 {[%clk 0:00:18]} 45. g5+ {[%clk 0:00:54]}  hxg5+ {[%clk 0:00:18]} 46. hxg5+ {[%clk 0:00:55]}  Kg7 {[%clk 0:00:19]} 47. Ke5 {[%clk 0:00:53]}  Bf5 {[%clk 0:00:19]} 48. Kd6 {[%clk 0:00:51]}  Be6 {[%clk 0:00:19]} 49. Ke7 {[%clk 0:00:51]}  Bc4 {[%clk 0:00:18]} 50. Ra6 {[%clk 0:00:49]}  Bxa6 {[%clk 0:00:18]} 51. Kd6 {[%clk 0:00:48]}  Bd3 {[%clk 0:00:18]} 52. Ke5 {[%clk 0:00:49]}  Bf5 {[%clk 0:00:19]} 53. Kf4 {[%clk 0:00:49]}  Kf8 {[%clk 0:00:20]} 54. Ke5 {[%clk 0:00:49]}  Ke7 {[%clk 0:00:20]} 0-1


[Site "https://www.chess.com"]

[Event "Titled Tuesday Blitz April 05 Late 2022"]
[White "Ladan, Nicholas"]
[Black "Bazeev, German"]
[WhiteFideId "30918855"]
[BlackFideId "24119350"]
[WhiteElo "2167"]
[BlackElo "2493"]
[Result "0-1"]
[Round "05"]
[TimeControl "180+1"]
[Date "2022.04.05"]
[WhiteClock "0:00:03"]
[BlackClock "0:00:24"]

1. d4 {[%clk 0:03:00]}  Nf6 {[%clk 0:02:41]} 2. Bf4 {[%clk 0:03:01]}  g6 {[%clk 0:02:40]} 3. Nc3 {[%clk 0:03:00]}  d5 {[%clk 0:02:39]} 4. e3 {[%clk 0:03:00]}  c6 {[%clk 0:02:40]} 5. h4 {[%clk 0:02:58]}  h5 {[%clk 0:02:39]} 6. Nf3 {[%clk 0:02:57]}  Bg4 {[%clk 0:02:40]} 7. Qd2 {[%clk 0:02:55]}  Bxf3 {[%clk 0:02:40]} 8. gxf3 {[%clk 0:02:55]}  Nbd7 {[%clk 0:02:41]} 9. Bd3 {[%clk 0:02:52]}  e6 {[%clk 0:02:41]} 10. O-O-O {[%clk 0:02:51]}  b5 {[%clk 0:02:41]} 11. Rdg1 {[%clk 0:02:44]}  b4 {[%clk 0:02:32]} 12. Na4 {[%clk 0:02:16]}  Qa5 {[%clk 0:02:30]} 13. b3 {[%clk 0:02:14]}  Nb6 {[%clk 0:02:31]} 14. Bc7 {[%clk 0:01:46]}  Kd7 {[%clk 0:02:22]} 15. Be5 {[%clk 0:01:33]}  Nxa4 {[%clk 0:02:22]} 16. bxa4 {[%clk 0:01:19]}  Be7 {[%clk 0:02:15]} 17. Kd1 {[%clk 0:01:11]}  Qxa4 {[%clk 0:02:14]} 18. Ke2 {[%clk 0:01:06]}  Rhc8 {[%clk 0:01:53]} 19. Rb1 {[%clk 0:01:03]}  Ke8 {[%clk 0:01:46]} 20. Bxf6 {[%clk 0:00:53]}  Bxf6 {[%clk 0:01:47]} 21. Rxb4 {[%clk 0:00:52]}  Qxa2 {[%clk 0:01:34]} 22. Rhb1 {[%clk 0:00:23]}  Qa5 {[%clk 0:01:30]} 23. Rb7 {[%clk 0:00:20]}  Qxd2+ {[%clk 0:01:29]} 24. Kxd2 {[%clk 0:00:21]}  Bxh4 {[%clk 0:01:24]} 25. Ba6 {[%clk 0:00:18]}  Bd8 {[%clk 0:01:03]} 26. c4 {[%clk 0:00:15]}  Rc7 {[%clk 0:00:59]} 27. Rxc7 {[%clk 0:00:10]}  Bxc7 {[%clk 0:00:58]} 28. Rb7 {[%clk 0:00:11]}  Kd8 {[%clk 0:00:56]} 29. c5 {[%clk 0:00:09]}  Kd7 {[%clk 0:00:48]} 30. f4 {[%clk 0:00:08]}  f6 {[%clk 0:00:47]} 31. Ke2 {[%clk 0:00:08]}  g5 {[%clk 0:00:48]} 32. Kf3 {[%clk 0:00:08]}  gxf4 {[%clk 0:00:42]} 33. exf4 {[%clk 0:00:09]}  Rg8 {[%clk 0:00:37]} 34. Rxa7 {[%clk 0:00:08]}  h4 {[%clk 0:00:37]} 35. Bf1 {[%clk 0:00:08]}  f5 {[%clk 0:00:33]} 36. Bh3 {[%clk 0:00:07]}  Rb8 {[%clk 0:00:33]} 37. Kg2 {[%clk 0:00:06]}  Rb4 {[%clk 0:00:31]} 38. Ra8 {[%clk 0:00:06]}  Rxd4 {[%clk 0:00:30]} 39. Rh8 {[%clk 0:00:06]}  Rxf4 {[%clk 0:00:31]} 40. Rh7+ {[%clk 0:00:06]}  Kc8 {[%clk 0:00:31]} 41. Rh6 {[%clk 0:00:05]}  Re4 {[%clk 0:00:31]} 42. f3 {[%clk 0:00:04]}  Re3 {[%clk 0:00:31]} 43. Kf1 {[%clk 0:00:05]}  d4 {[%clk 0:00:30]} 44. Kf2 {[%clk 0:00:05]}  Bg3+ {[%clk 0:00:30]} 45. Kg2 {[%clk 0:00:06]}  d3 {[%clk 0:00:28]} 46. f4 {[%clk 0:00:06]}  d2 {[%clk 0:00:26]} 47. Bg4 {[%clk 0:00:05]}  fxg4 {[%clk 0:00:26]} 48. Rh7 {[%clk 0:00:04]}  Re2+ {[%clk 0:00:23]} 49. Kf1 {[%clk 0:00:03]}  d1=Q# {[%clk 0:00:24]} 0-1


[Site "https://www.chess.com"]

[Event "Titled Tuesday Blitz April 05 Late 2022"]
[White "Levin, Anthony"]
[Black "Estrada Nieto, Julian"]
[WhiteFideId "30940680"]
[BlackFideId "5101018"]
[WhiteElo "2031"]
[BlackElo "2252"]
[Result "0-1"]
[Round "05"]
[TimeControl "180+1"]
[Date "2022.04.06"]
[WhiteClock "0:00:04"]
[BlackClock "0:00:44"]

1. d4 {[%clk 0:02:59]}  Nf6 {[%clk 0:02:55]} 2. c4 {[%clk 0:02:59]}  e6 {[%clk 0:02:55]} 3. g3 {[%clk 0:02:58]}  c5 {[%clk 0:02:54]} 4. d5 {[%clk 0:02:58]}  exd5 {[%clk 0:02:53]} 5. cxd5 {[%clk 0:02:59]}  d6 {[%clk 0:02:53]} 6. Nc3 {[%clk 0:02:58]}  g6 {[%clk 0:02:53]} 7. Bg2 {[%clk 0:02:57]}  Bg7 {[%clk 0:02:52]} 8. Nf3 {[%clk 0:02:58]}  O-O {[%clk 0:02:51]} 9. O-O {[%clk 0:02:58]}  a6 {[%clk 0:02:52]} 10. a4 {[%clk 0:02:58]}  Bf5 {[%clk 0:02:49]} 11. Nh4 {[%clk 0:02:51]}  Bc8 {[%clk 0:02:40]} 12. Nf3 {[%clk 0:02:50]}  Re8 {[%clk 0:02:38]} 13. Bf4 {[%clk 0:02:47]}  Nh5 {[%clk 0:02:36]} 14. Bg5 {[%clk 0:02:47]}  Qb6 {[%clk 0:02:34]} 15. Qd2 {[%clk 0:02:44]}  Bg4 {[%clk 0:02:26]} 16. Rfe1 {[%clk 0:02:20]}  Nd7 {[%clk 0:02:21]} 17. a5 {[%clk 0:02:10]}  Qb4 {[%clk 0:02:20]} 18. Qc2 {[%clk 0:01:56]}  c4 {[%clk 0:01:58]} 19. Ra4 {[%clk 0:01:50]}  Qb3 {[%clk 0:01:55]} 20. Qxb3 {[%clk 0:01:45]}  cxb3 {[%clk 0:01:55]} 21. Rb4 {[%clk 0:01:45]}  Nc5 {[%clk 0:01:45]} 22. Be3 {[%clk 0:01:20]}  Rxe3 {[%clk 0:01:40]} 23. fxe3 {[%clk 0:01:18]}  Re8 {[%clk 0:01:40]} 24. Nd4 {[%clk 0:01:05]}  Rxe3 {[%clk 0:01:35]} 25. Nxb3 {[%clk 0:01:05]}  Rxc3 {[%clk 0:01:30]} 26. Nxc5 {[%clk 0:00:39]}  Rxc5 {[%clk 0:01:25]} 27. Rxb7 {[%clk 0:00:39]}  Be5 {[%clk 0:01:11]} 28. b4 {[%clk 0:00:36]}  Rc2 {[%clk 0:01:10]} 29. Kf1 {[%clk 0:00:37]}  Bc3 {[%clk 0:01:07]} 30. Be4 {[%clk 0:00:25]}  Rb2 {[%clk 0:01:02]} 31. Rc1 {[%clk 0:00:24]}  Bxe2+ {[%clk 0:01:00]} 32. Kg1 {[%clk 0:00:20]}  Bd4+ {[%clk 0:00:53]} 33. Kh1 {[%clk 0:00:17]}  Nf6 {[%clk 0:00:54]} 34. Bg2 {[%clk 0:00:11]}  Ng4 {[%clk 0:00:53]} 35. h3 {[%clk 0:00:08]}  Ne3 {[%clk 0:00:50]} 36. Be4 {[%clk 0:00:06]}  Nf5 {[%clk 0:00:45]} 37. Bxf5 {[%clk 0:00:04]}  Bf3# {[%clk 0:00:44]} 0-1


[Site "https://www.chess.com"]

[Event "Titled Tuesday Blitz April 05 Late 2022"]
[White "Manukyan, Sargis A."]
[Black "Manelyuk, Daniil"]
[WhiteFideId "13303970"]
[BlackFideId "44173920"]
[WhiteElo "2582"]
[BlackElo "2405"]
[Result "1-0"]
[Round "05"]
[TimeControl "180+1"]
[Date "2022.04.06"]
[WhiteClock "0:01:29"]
[BlackClock "0:00:06"]

1. d4 {[%clk 0:03:00]}  Nf6 {[%clk 0:02:58]} 2. c4 {[%clk 0:03:00]}  c5 {[%clk 0:02:58]} 3. d5 {[%clk 0:03:00]}  b5 {[%clk 0:02:58]} 4. cxb5 {[%clk 0:03:01]}  a6 {[%clk 0:02:58]} 5. bxa6 {[%clk 0:03:02]}  g6 {[%clk 0:02:59]} 6. Nc3 {[%clk 0:03:03]}  Bg7 {[%clk 0:02:59]} 7. Nf3 {[%clk 0:03:04]}  O-O {[%clk 0:02:59]} 8. g3 {[%clk 0:03:04]}  Qa5 {[%clk 0:02:59]} 9. Bd2 {[%clk 0:03:03]}  d6 {[%clk 0:02:52]} 10. Bg2 {[%clk 0:03:03]}  Nxa6 {[%clk 0:02:50]} 11. O-O {[%clk 0:03:01]}  Nc7 {[%clk 0:02:50]} 12. e4 {[%clk 0:03:00]}  Ba6 {[%clk 0:02:48]} 13. Re1 {[%clk 0:02:59]}  Nd7 {[%clk 0:02:48]} 14. Qc2 {[%clk 0:02:59]}  Rfb8 {[%clk 0:02:47]} 15. Rab1 {[%clk 0:02:57]}  Nb5 {[%clk 0:02:33]} 16. Nxb5 {[%clk 0:02:54]}  Qxb5 {[%clk 0:02:34]} 17. b3 {[%clk 0:02:55]}  Qd3 {[%clk 0:02:33]} 18. Qc1 {[%clk 0:02:47]}  Bc8 {[%clk 0:01:54]} 19. Re3 {[%clk 0:02:33]}  Qa6 {[%clk 0:01:54]} 20. a4 {[%clk 0:02:33]}  c4 {[%clk 0:01:53]} 21. Bf1 {[%clk 0:02:32]}  Qb6 {[%clk 0:01:22]} 22. Bxc4 {[%clk 0:02:30]}  Rxa4 {[%clk 0:01:22]} 23. Re1 {[%clk 0:02:27]}  Raa8 {[%clk 0:01:18]} 24. Be3 {[%clk 0:02:28]}  Qd8 {[%clk 0:01:15]} 25. Nd4 {[%clk 0:02:28]}  Bb7 {[%clk 0:01:10]} 26. Nc6 {[%clk 0:02:27]}  Bxc6 {[%clk 0:01:01]} 27. dxc6 {[%clk 0:02:28]}  Nc5 {[%clk 0:01:01]} 28. b4 {[%clk 0:02:24]}  Nxe4 {[%clk 0:00:45]} 29. c7 {[%clk 0:02:24]}  Qd7 {[%clk 0:00:38]} 30. cxb8=Q+ {[%clk 0:02:22]}  Rxb8 {[%clk 0:00:39]} 31. Ba7 {[%clk 0:02:14]}  Qxa7 {[%clk 0:00:35]} 32. Rxe4 {[%clk 0:02:14]}  e6 {[%clk 0:00:35]} 33. Re2 {[%clk 0:02:08]}  d5 {[%clk 0:00:35]} 34. Bd3 {[%clk 0:02:08]}  Qb7 {[%clk 0:00:34]} 35. b5 {[%clk 0:02:08]}  Rc8 {[%clk 0:00:35]} 36. Rc2 {[%clk 0:02:09]}  Ra8 {[%clk 0:00:33]} 37. Rc7 {[%clk 0:02:08]}  Qb6 {[%clk 0:00:32]} 38. Rc8+ {[%clk 0:02:09]}  Rxc8 {[%clk 0:00:31]} 39. Qxc8+ {[%clk 0:02:10]}  Bf8 {[%clk 0:00:32]} 40. Qc6 {[%clk 0:02:10]}  Qd4 {[%clk 0:00:32]} 41. Qc2 {[%clk 0:02:08]}  Bc5 {[%clk 0:00:31]} 42. Bf1 {[%clk 0:02:04]}  Bb6 {[%clk 0:00:29]} 43. Kg2 {[%clk 0:02:04]}  e5 {[%clk 0:00:28]} 44. Rd1 {[%clk 0:02:02]}  Qg4 {[%clk 0:00:23]} 45. Rxd5 {[%clk 0:02:01]}  e4 {[%clk 0:00:23]} 46. Qe2 {[%clk 0:01:57]}  Qe6 {[%clk 0:00:21]} 47. Rd1 {[%clk 0:01:51]}  Qf5 {[%clk 0:00:18]} 48. f3 {[%clk 0:01:48]}  Qc5 {[%clk 0:00:14]} 49. fxe4 {[%clk 0:01:42]}  Qg1+ {[%clk 0:00:13]} 50. Kh3 {[%clk 0:01:43]}  h5 {[%clk 0:00:09]} 51. e5 {[%clk 0:01:38]}  Kg7 {[%clk 0:00:06]} 52. Rd7 {[%clk 0:01:35]}  Qc5 {[%clk 0:00:04]} 53. Qf3 {[%clk 0:01:32]}  Qxe5 {[%clk 0:00:01]} 54. Qxf7+ {[%clk 0:01:32]}  Kh6 {[%clk 0:00:02]} 55. Qf8+ {[%clk 0:01:29]}  Kg5 {[%clk 0:00:02]} 56. Qf4+ {[%clk 0:01:30]}  Qxf4 {[%clk 0:00:01]} 57. gxf4+ {[%clk 0:01:30]}  Kxf4 {[%clk 0:00:02]} 58. Rd6 {[%clk 0:01:31]}  Be3 {[%clk 0:00:01]} 59. Rxg6 {[%clk 0:01:28]}  Kf5 {[%clk 0:00:01]} 60. Rc6 {[%clk 0:01:28]}  Kf4 {[%clk 0:00:02]} 61. b6 {[%clk 0:01:29]}  Kf3 {[%clk 0:00:02]} 62. b7 {[%clk 0:01:29]}  Bf4 {[%clk 0:00:03]} 63. Rf6 {[%clk 0:01:28]}  Kf2 {[%clk 0:00:04]} 64. Rxf4+ {[%clk 0:01:29]}  Kg1 {[%clk 0:00:04]} 65. b8=Q {[%clk 0:01:28]}  Kh1 {[%clk 0:00:05]} 66. Bg2+ {[%clk 0:01:29]}  Kg1 {[%clk 0:00:06]} 67. Qb6# {[%clk 0:01:29]} 1-0


[Site "https://www.chess.com"]

[Event "Titled Tuesday Blitz April 05 Late 2022"]
[White "Martinez Alcantara, Jose Eduardo"]
[Black "Korchmar, Vasiliy"]
[WhiteFideId "3805662"]
[BlackFideId "24131750"]
[WhiteElo "2690"]
[BlackElo "2370"]
[Result "1-0"]
[Round "05"]
[TimeControl "180+1"]
[Date "2022.04.05"]
[WhiteClock "0:01:41"]
[BlackClock "0:00:02"]

1. e4 {[%clk 0:03:00]}  c5 {[%clk 0:03:00]} 2. Nf3 {[%clk 0:03:01]}  d6 {[%clk 0:03:00]} 3. Bb5+ {[%clk 0:03:00]}  Nd7 {[%clk 0:03:00]} 4. O-O {[%clk 0:03:00]}  a6 {[%clk 0:03:00]} 5. Bxd7+ {[%clk 0:03:01]}  Bxd7 {[%clk 0:03:00]} 6. c3 {[%clk 0:03:02]}  Nf6 {[%clk 0:02:59]} 7. Re1 {[%clk 0:03:02]}  e6 {[%clk 0:02:22]} 8. d4 {[%clk 0:03:02]}  Be7 {[%clk 0:02:19]} 9. e5 {[%clk 0:03:01]}  Nd5 {[%clk 0:02:14]} 10. c4 {[%clk 0:02:56]}  Nc7 {[%clk 0:01:59]} 11. exd6 {[%clk 0:02:54]}  Bxd6 {[%clk 0:01:59]} 12. Nc3 {[%clk 0:02:55]}  Be7 {[%clk 0:01:44]} 13. dxc5 {[%clk 0:02:53]}  Bc6 {[%clk 0:01:37]} 14. Be3 {[%clk 0:02:52]}  Qxd1 {[%clk 0:01:24]} 15. Raxd1 {[%clk 0:02:53]}  Bxf3 {[%clk 0:01:23]} 16. gxf3 {[%clk 0:02:54]}  e5 {[%clk 0:01:08]} 17. b4 {[%clk 0:02:48]}  a5 {[%clk 0:01:04]} 18. b5 {[%clk 0:02:43]}  Ne6 {[%clk 0:01:03]} 19. Rd5 {[%clk 0:02:42]}  f6 {[%clk 0:00:53]} 20. Na4 {[%clk 0:02:42]}  Rc8 {[%clk 0:00:47]} 21. Red1 {[%clk 0:02:42]}  Kf7 {[%clk 0:00:36]} 22. Rd7 {[%clk 0:02:09]}  Rhd8 {[%clk 0:00:33]} 23. Nb6 {[%clk 0:02:10]}  Rc7 {[%clk 0:00:13]} 24. Rxd8 {[%clk 0:02:08]}  Bxd8 {[%clk 0:00:13]} 25. Na4 {[%clk 0:01:58]}  Be7 {[%clk 0:00:12]} 26. Rd5 {[%clk 0:01:59]}  g5 {[%clk 0:00:08]} 27. Kf1 {[%clk 0:01:58]}  Rc8 {[%clk 0:00:07]} 28. Rd7 {[%clk 0:01:55]}  Rc7 {[%clk 0:00:05]} 29. Rxc7 {[%clk 0:01:55]}  Nxc7 {[%clk 0:00:06]} 30. Bd2 {[%clk 0:01:56]}  Ne6 {[%clk 0:00:04]} 31. Bxa5 {[%clk 0:01:56]}  Nxc5 {[%clk 0:00:04]} 32. Nxc5 {[%clk 0:01:56]}  Bxc5 {[%clk 0:00:05]} 33. Bd2 {[%clk 0:01:57]}  Ke6 {[%clk 0:00:04]} 34. a4 {[%clk 0:01:55]}  Bd4 {[%clk 0:00:03]} 35. Be3 {[%clk 0:01:48]}  Kd6 {[%clk 0:00:02]} 36. Bxd4 {[%clk 0:01:45]}  exd4 {[%clk 0:00:03]} 37. Ke2 {[%clk 0:01:45]}  Kc5 {[%clk 0:00:02]} 38. a5 {[%clk 0:01:41]} 1-0


[Site "https://www.chess.com"]

[Event "Titled Tuesday Blitz April 05 Late 2022"]
[White "Mekhitarian, Krikor Sevag"]
[Black "Hakobyan, Aram"]
[WhiteFideId "2107660"]
[BlackFideId "13306677"]
[WhiteElo "2598"]
[BlackElo "2557"]
[Result "0-1"]
[Round "05"]
[TimeControl "180+1"]
[Date "2022.04.05"]
[WhiteClock "0:00:09"]
[BlackClock "0:00:46"]

1. Nf3 {[%clk 0:03:00]}  Nf6 {[%clk 0:02:59]} 2. c4 {[%clk 0:02:59]}  g6 {[%clk 0:02:59]} 3. Nc3 {[%clk 0:02:59]}  Bg7 {[%clk 0:03:00]} 4. e4 {[%clk 0:02:59]}  O-O {[%clk 0:03:01]} 5. d4 {[%clk 0:02:59]}  d6 {[%clk 0:03:02]} 6. h3 {[%clk 0:02:59]}  c5 {[%clk 0:03:01]} 7. Be2 {[%clk 0:02:59]}  Nc6 {[%clk 0:03:00]} 8. Be3 {[%clk 0:02:58]}  Nd7 {[%clk 0:02:59]} 9. d5 {[%clk 0:02:39]}  Na5 {[%clk 0:02:59]} 10. O-O {[%clk 0:02:37]}  a6 {[%clk 0:02:58]} 11. Qc2 {[%clk 0:02:31]}  b5 {[%clk 0:02:53]} 12. cxb5 {[%clk 0:02:32]}  axb5 {[%clk 0:02:54]} 13. Bxb5 {[%clk 0:02:31]}  Nb6 {[%clk 0:02:54]} 14. Nd2 {[%clk 0:02:26]}  Bd7 {[%clk 0:02:53]} 15. Bxd7 {[%clk 0:02:17]}  Qxd7 {[%clk 0:02:54]} 16. b3 {[%clk 0:02:18]}  f5 {[%clk 0:02:38]} 17. f3 {[%clk 0:02:06]}  f4 {[%clk 0:02:37]} 18. Bf2 {[%clk 0:02:06]}  g5 {[%clk 0:02:36]} 19. Rfe1 {[%clk 0:02:03]}  Be5 {[%clk 0:02:34]} 20. Rab1 {[%clk 0:01:35]}  Rac8 {[%clk 0:02:23]} 21. Rec1 {[%clk 0:01:15]}  h5 {[%clk 0:02:23]} 22. Qd1 {[%clk 0:01:15]}  Kh7 {[%clk 0:02:12]} 23. b4 {[%clk 0:00:30]}  cxb4 {[%clk 0:02:05]} 24. Bxb6 {[%clk 0:00:31]}  bxc3 {[%clk 0:02:06]} 25. Bxa5 {[%clk 0:00:31]}  Qa7+ {[%clk 0:01:58]} 26. Bb6 {[%clk 0:00:28]}  Bd4+ {[%clk 0:01:21]} 27. Kh2 {[%clk 0:00:19]}  Bxb6 {[%clk 0:01:19]} 28. Nb3 {[%clk 0:00:17]}  Qxa2 {[%clk 0:01:10]} 29. Qd3 {[%clk 0:00:10]}  g4 {[%clk 0:00:49]} 30. Rc2 {[%clk 0:00:09]}  g3+ {[%clk 0:00:46]} 0-1


[Site "https://www.chess.com"]